[Event "2026 European Womens Championship"]
[Site "Batumi, GE"]
[Date "2026.05.29"]
[Round "5"]
[White "Khachatryan, Anna"]
[Black "Nomin-Erdene, Davaademberel"]
[Result "1/2-1/2"]
[Board "89"]
[TimeControl "5400+30"]
[WhiteFideId "13310780"]
[BlackFideId "4900782"]
[WhiteElo "2154"]
[BlackElo "2328"]
[WhiteTitle "WFM"]
[BlackTitle "IM"]
[WhiteClock "0:11:38"]
[BlackClock "0:01:02"]
[Variant "Standard"]

1. d4 {[%clk 1:30:56]}  d5 {[%clk 1:29:29]} 2. c4 {[%clk 1:31:11]}  e6 {[%clk 1:29:45]} 3. Nc3 {[%clk 1:31:27]}  c6 {[%clk 1:30:09]}
4. e4 {[%clk 1:30:30]}  dxe4 {[%clk 1:30:31]} 5. Nxe4 {[%clk 1:30:56]}  Bb4+ {[%clk 1:30:56]} 6. Bd2 {[%clk 1:31:22]}  Qxd4 {[%clk 1:31:18]}
7. Bxb4 {[%clk 1:31:48]}  Qxe4+ {[%clk 1:31:41]} 8. Be2 {[%clk 1:32:12]}  Na6 {[%clk 1:31:54]} 9. Bd6 {[%clk 1:32:21]}  Qxg2 {[%clk 1:30:53]}
10. Qd2 {[%clk 1:31:27]}  Qe4 {[%clk 1:30:48]} 11. O-O-O {[%clk 1:24:48]}  e5 {[%clk 1:30:55]} 12. Bxe5 {[%clk 0:55:19]}  Bf5 {[%clk 1:28:24]}
13. Bd3 {[%clk 0:53:17]}  Qxd3 {[%clk 1:28:33]} 14. Qxd3 {[%clk 0:53:44]}  Bxd3 {[%clk 1:28:56]} 15. Bxg7 {[%clk 0:53:45]}  Nb4 {[%clk 1:15:38]}
16. Re1+ {[%clk 0:45:53]}  Ne7 {[%clk 1:13:15]} 17. Bxh8 {[%clk 0:34:49]}  Bg6 {[%clk 0:42:45]} 18. Kd2 {[%clk 0:14:41]}  O-O-O+ {[%clk 0:33:26]}
19. Kc3 {[%clk 0:14:51]}  c5 {[%clk 0:33:44]} 20. b3 {[%clk 0:12:35]}  Nxa2+ {[%clk 0:30:26]} 21. Kb2 {[%clk 0:12:48]}  Rd2+ {[%clk 0:30:51]}
22. Ka3 {[%clk 0:09:43]}  Nb4 {[%clk 0:29:22]} 23. Re2 {[%clk 0:09:53]}  Rd6 {[%clk 0:21:05]} 24. Rxe7 {[%clk 0:05:08]}  Ra6+ {[%clk 0:11:12]}
25. Kb2 {[%clk 0:05:37]}  Ra2+ {[%clk 0:11:29]} 26. Kc1 {[%clk 0:06:06]}  Nd3+ {[%clk 0:08:34]} 27. Kb1 {[%clk 0:06:31]}  Nb4+ {[%clk 0:05:54]}
28. Kc1 {[%clk 0:06:46]}  Nd3+ {[%clk 0:05:41]} 29. Kb1 {[%clk 0:07:15]}  Rd2 {[%clk 0:04:08]} 30. Nf3 {[%clk 0:01:58]}  Ne1+ {[%clk 0:03:31]}
31. Ka1 {[%clk 0:00:38]}  Nxf3 {[%clk 0:01:01]} 32. h4 {[%clk 0:00:41]}  h5 {[%clk 0:00:38]} 33. Bc3 {[%clk 0:00:38]}  Rc2 {[%clk 0:00:33]}
34. Re3 {[%clk 0:00:41]}  Nd4 {[%clk 0:00:43]} 35. Bxd4 {[%clk 0:00:41]}  cxd4 {[%clk 0:01:11]} 36. Rg3 {[%clk 0:00:35]}  Rxf2 {[%clk 0:00:39]}
37. Rd1 {[%clk 0:00:46]}  d3 {[%clk 0:00:34]} 38. Rxg6 {[%clk 0:00:57]}  fxg6 {[%clk 0:01:00]} 39. Rxd3 {[%clk 0:01:24]}  Rg2 {[%clk 0:01:20]}
40. Rd6 {[%clk 0:01:34]}  Kc7 {[%clk 0:00:39]} 41. Rf6 {[%clk 0:26:15]}  Kd7 {[%clk 0:20:09]} 42. c5 {[%clk 0:21:00]}  a5 {[%clk 0:14:56]}
43. Rb6 {[%clk 0:17:55]}  Kc7 {[%clk 0:15:21]} 44. Kb1 {[%clk 0:13:51]}  Rg4 {[%clk 0:14:43]} 45. Rf6 {[%clk 0:11:20]}  g5 {[%clk 0:14:07]}
46. Rf5 {[%clk 0:11:43]}  Rxh4 {[%clk 0:06:58]} 47. Rxg5 {[%clk 0:12:08]}  Kc6 {[%clk 0:07:26]} 48. Kb2 {[%clk 0:09:10]}  Rh1 {[%clk 0:04:57]}
49. Rf5 {[%clk 0:04:59]}  h4 {[%clk 0:04:40]} 50. Rh5 {[%clk 0:04:33]}  h3 {[%clk 0:04:43]} 51. Ka2 {[%clk 0:04:49]}  Kb5 {[%clk 0:00:33]}
52. Rh7 {[%clk 0:03:31]}  Kc6 {[%clk 0:00:37]} 53. Rh5 {[%clk 0:03:57]}  h2 {[%clk 0:00:40]} 54. Kb2 {[%clk 0:04:16]}  Kb5 {[%clk 0:01:06]}
55. Ka2 {[%clk 0:04:15]}  Kc6 {[%clk 0:00:55]} 56. Kb2 {[%clk 0:04:40]}  Kd7 {[%clk 0:00:50]} 57. Rh6 {[%clk 0:04:39]}  Ke7 {[%clk 0:01:08]}
58. Ka2 {[%clk 0:04:58]}  Kf7 {[%clk 0:01:33]} 59. Kb2 {[%clk 0:05:22]}  Kg7 {[%clk 0:01:59]} 60. Rh3 {[%clk 0:05:45]}  Kg6 {[%clk 0:02:09]}
61. Rh8 {[%clk 0:06:02]}  Kf5 {[%clk 0:01:22]} 62. Ka2 {[%clk 0:06:09]}  Ke4 {[%clk 0:01:08]} 63. Kb2 {[%clk 0:06:35]}  Kd5 {[%clk 0:01:24]}
64. Rh5+ {[%clk 0:06:51]}  Kd4 {[%clk 0:01:51]} 65. Ka2 {[%clk 0:07:10]}  Ke3 {[%clk 0:00:35]} 66. Rh3+ {[%clk 0:06:55]}  Kd4 {[%clk 0:00:34]}
67. Rh5 {[%clk 0:07:21]}  Kc3 {[%clk 0:00:34]} 68. Rh3+ {[%clk 0:07:46]}  Kc2 {[%clk 0:00:33]} 69. Rh4 {[%clk 0:07:29]}  Kd3 {[%clk 0:00:33]}
70. Rh3+ {[%clk 0:07:53]}  Ke2 {[%clk 0:00:39]} 71. Rh8 {[%clk 0:07:51]}  Kf2 {[%clk 0:00:42]} 72. Kb2 {[%clk 0:08:11]}  Kg2 {[%clk 0:00:57]}
73. Rg8 {[%clk 0:08:38]}  Kf3 {[%clk 0:00:54]} 74. Rh8 {[%clk 0:08:24]}  Kg3 {[%clk 0:01:21]} 75. Rg8+ {[%clk 0:08:51]}  Kf4 {[%clk 0:01:49]}
76. Rh8 {[%clk 0:09:11]}  Ke4 {[%clk 0:01:35]} 77. Rh7 {[%clk 0:09:32]}  Kd5 {[%clk 0:00:43]} 78. Rh5+ {[%clk 0:09:54]}  Kc6 {[%clk 0:01:09]}
79. Ka2 {[%clk 0:10:20]}  Rd1 {[%clk 0:01:04]} 80. Rxh2 {[%clk 0:10:45]}  Kxc5 {[%clk 0:01:32]} 81. Kb2 {[%clk 0:09:57]}  Rd5 {[%clk 0:01:48]}
82. Rc2+ {[%clk 0:10:14]}  Kb5 {[%clk 0:02:10]} 83. Rh2 {[%clk 0:10:40]}  Rg5 {[%clk 0:01:28]} 84. Rh7 {[%clk 0:10:17]}  Kc6 {[%clk 0:01:14]}
85. Rh2 {[%clk 0:10:26]}  Rb5 {[%clk 0:00:39]} 86. Ka3 {[%clk 0:10:40]}  Rd5 {[%clk 0:00:37]} 87. Rc2+ {[%clk 0:10:58]}  Rc5 {[%clk 0:00:48]}
88. Rh2 {[%clk 0:11:09]}  b5 {[%clk 0:00:40]} 89. Rh6+ {[%clk 0:10:39]}  Kd5 {[%clk 0:00:34]} 90. Ra6 {[%clk 0:10:52]}  a4 {[%clk 0:00:33]}
91. bxa4 {[%clk 0:11:13]}  bxa4 {[%clk 0:01:02]} 92. Rxa4 {[%clk 0:11:38]}  Ke5 {[%clk 0:00:58]} 1/2-1/2

[Event "2026 European Womens Championship"]
[Site "Batumi, GE"]
[Date "2026.05.29"]
[Round "5"]
[White "Mgeladze, Kesaria"]
[Black "Gvetadze, Sofio"]
[Result "1-0"]
[Board "90"]
[TimeControl "5400+30"]
[WhiteFideId "13621130"]
[BlackFideId "13601440"]
[WhiteElo "2147"]
[BlackElo "2311"]
[WhiteTitle "WIM"]
[BlackTitle "IM"]
[WhiteClock "0:24:15"]
[BlackClock "0:37:18"]
[Variant "Standard"]

1. e4 {[%clk 1:30:55]}  d6 {[%clk 1:30:43]} 2. d4 {[%clk 1:31:00]}  Nf6 {[%clk 1:31:05]} 3. Nc3 {[%clk 1:31:23]}  Nbd7 {[%clk 1:31:16]}
4. Nf3 {[%clk 1:30:03]}  e5 {[%clk 1:31:15]} 5. Bc4 {[%clk 1:28:47]}  Be7 {[%clk 1:30:42]} 6. h3 {[%clk 1:23:58]}  O-O {[%clk 1:30:33]}
7. O-O {[%clk 1:05:42]}  c6 {[%clk 1:30:17]} 8. a4 {[%clk 1:04:32]}  h6 {[%clk 1:30:06]} 9. dxe5 {[%clk 1:03:17]}  dxe5 {[%clk 1:30:24]}
10. Qe2 {[%clk 1:00:21]}  Qc7 {[%clk 1:20:14]} 11. Nh4 {[%clk 0:45:31]}  Bc5 {[%clk 1:16:10]} 12. Be3 {[%clk 0:40:29]}  Bxe3 {[%clk 1:11:19]}
13. fxe3 {[%clk 0:35:44]}  Nb6 {[%clk 1:10:32]} 14. Bb3 {[%clk 0:34:43]}  Nbd7 {[%clk 0:50:00]} 15. Nf5 {[%clk 0:26:17]}  Kh7 {[%clk 0:48:55]}
16. Qf3 {[%clk 0:26:09]}  Ng8 {[%clk 0:47:31]} 17. Qg3 {[%clk 0:18:21]}  g6 {[%clk 0:46:37]} 18. Nh4 {[%clk 0:17:08]}  Ndf6 {[%clk 0:46:41]}
19. Rf3 {[%clk 0:16:08]}  Qe7 {[%clk 0:43:27]} 20. Raf1 {[%clk 0:15:48]}  Be6 {[%clk 0:42:57]} 21. Qf2 {[%clk 0:11:39]}  Bxb3 {[%clk 0:38:40]}
22. cxb3 {[%clk 0:12:04]}  Kg7 {[%clk 0:38:18]} 23. Rg3 {[%clk 0:09:33]}  Qe6 {[%clk 0:36:28]} 24. Qf5 {[%clk 0:08:33]}  Ne7 {[%clk 0:32:43]}
25. Qf3 {[%clk 0:07:00]}  Nfg8 {[%clk 0:29:21]} 26. Nf5+ {[%clk 0:06:06]}  Kh7 {[%clk 0:29:31]} 27. Nxe7 {[%clk 0:05:37]}  Qxe7 {[%clk 0:29:22]}
28. Qe2 {[%clk 0:05:39]}  Qe6 {[%clk 0:29:28]} 29. Qc2 {[%clk 0:05:27]}  Rad8 {[%clk 0:29:32]} 30. Rgf3 {[%clk 0:05:42]}  a5 {[%clk 0:27:24]}
31. Nb1 {[%clk 0:05:37]}  Rd7 {[%clk 0:17:57]} 32. Na3 {[%clk 0:05:45]}  f6 {[%clk 0:16:03]} 33. Nc4 {[%clk 0:05:05]}  Rfd8 {[%clk 0:16:06]}
34. Nxa5 {[%clk 0:04:10]}  Rd2 {[%clk 0:14:39]} 35. Qc3 {[%clk 0:03:43]}  Qd7 {[%clk 0:12:17]} 36. Nc4 {[%clk 0:02:46]}  Rd3 {[%clk 0:12:07]}
37. Qb4 {[%clk 0:02:32]}  Kh8 {[%clk 0:11:38]} 38. a5 {[%clk 0:01:23]}  c5 {[%clk 0:11:00]} 39. Qb6 {[%clk 0:01:02]}  Ra8 {[%clk 0:10:59]}
40. Qxc5 {[%clk 0:01:08]}  Ra6 {[%clk 0:10:54]} 41. Qf8 {[%clk 0:00:35]}  Qg7 {[%clk 0:08:29]} 42. Qe8 {[%clk 0:25:03]}  Rxb3 {[%clk 0:35:54]}
43. Nxe5 {[%clk 0:24:37]}  Rxb2 {[%clk 0:36:10]} 44. Nxg6+ {[%clk 0:24:13]}  Kh7 {[%clk 0:36:39]} 45. Rg3 {[%clk 0:24:26]}  Qc7 {[%clk 0:37:02]}
46. Nf4 {[%clk 0:23:53]}  Qc4 {[%clk 0:37:18]} 47. Qg6+ {[%clk 0:24:15]} 1-0

[Event "2026 European Womens Championship"]
[Site "Batumi, GE"]
[Date "2026.05.29"]
[Round "5"]
[White "Matnadze Bujiashvili, Ann"]
[Black "Vidic, Teja"]
[Result "1-0"]
[Board "91"]
[TimeControl "5400+30"]
[WhiteFideId "13601377"]
[BlackFideId "14605511"]
[WhiteElo "2310"]
[BlackElo "2123"]
[WhiteTitle "IM"]
[BlackTitle "WIM"]
[WhiteClock "0:13:20"]
[BlackClock "0:41:12"]
[Variant "Standard"]

1. d4 {[%clk 1:30:58]}  d5 {[%clk 1:30:49]} 2. Nf3 {[%clk 1:31:18]}  Nf6 {[%clk 1:31:05]} 3. c4 {[%clk 1:31:43]}  c6 {[%clk 1:31:26]}
4. Nc3 {[%clk 1:28:13]}  dxc4 {[%clk 1:31:38]} 5. a4 {[%clk 1:28:31]}  Bf5 {[%clk 1:31:56]} 6. Ne5 {[%clk 1:28:36]}  Nbd7 {[%clk 1:31:44]}
7. Nxc4 {[%clk 1:29:02]}  Nb6 {[%clk 1:32:07]} 8. e3 {[%clk 1:29:21]}  a5 {[%clk 1:30:01]} 9. Ne5 {[%clk 1:20:45]}  g6 {[%clk 1:30:15]}
10. Be2 {[%clk 1:18:12]}  Bg7 {[%clk 1:30:05]} 11. h4 {[%clk 1:18:30]}  Nfd7 {[%clk 1:22:45]} 12. g4 {[%clk 1:14:47]}  Nxe5 {[%clk 1:15:23]}
13. gxf5 {[%clk 1:15:03]}  Nec4 {[%clk 1:15:29]} 14. Bd3 {[%clk 1:06:33]}  Qd6 {[%clk 1:01:26]} 15. b3 {[%clk 0:58:07]}  Ne5 {[%clk 0:53:03]}
16. dxe5 {[%clk 0:57:35]}  Bxe5 {[%clk 0:53:21]} 17. Bb2 {[%clk 0:42:07]}  O-O-O {[%clk 0:50:52]} 18. Ke2 {[%clk 0:40:39]}  Qb4 {[%clk 0:45:35]}
19. f4 {[%clk 0:36:08]}  Nc4 {[%clk 0:39:52]} 20. Bxc4 {[%clk 0:16:59]}  Rxd1 {[%clk 0:38:15]} 21. Nxd1 {[%clk 0:16:25]}  Bxb2 {[%clk 0:33:39]}
22. Nxb2 {[%clk 0:16:53]}  gxf5 {[%clk 0:33:55]} 23. Nd3 {[%clk 0:15:11]}  Qc3 {[%clk 0:33:26]} 24. Rac1 {[%clk 0:14:43]}  Qf6 {[%clk 0:32:44]}
25. Ne5 {[%clk 0:14:52]}  e6 {[%clk 0:30:32]} 26. Rcd1 {[%clk 0:15:18]}  Rg8 {[%clk 0:29:04]} 27. Kf2 {[%clk 0:14:22]}  Qe7 {[%clk 0:27:45]}
28. Rd7 {[%clk 0:12:23]}  Qa3 {[%clk 0:26:54]} 29. Rhd1 {[%clk 0:09:59]}  Qb2+ {[%clk 0:26:00]} 30. R7d2 {[%clk 0:09:58]}  Qc3 {[%clk 0:25:37]}
31. Nxf7 {[%clk 0:08:57]}  Qf6 {[%clk 0:23:08]} 32. Ng5 {[%clk 0:09:18]}  Re8 {[%clk 0:23:24]} 33. Rd6 {[%clk 0:08:10]}  h6 {[%clk 0:22:47]}
34. Bxe6+ {[%clk 0:07:45]}  Kc7 {[%clk 0:21:21]} 35. Bf7 {[%clk 0:07:50]}  Qh8 {[%clk 0:15:54]} 36. Ne6+ {[%clk 0:06:16]}  Kb6 {[%clk 0:16:17]}
37. Bxe8 {[%clk 0:06:10]}  Qxe8 {[%clk 0:16:42]} 38. Nd4 {[%clk 0:06:00]}  Qh5 {[%clk 0:15:56]} 39. Nf3 {[%clk 0:06:21]}  Qf7 {[%clk 0:15:41]}
40. R1d3 {[%clk 0:06:40]}  Qg7 {[%clk 0:15:27]} 41. Ne5 {[%clk 0:04:55]}  h5 {[%clk 0:14:32]} 42. Rf6 {[%clk 0:03:31]}  Qe7 {[%clk 0:13:56]}
43. Rdd6 {[%clk 0:01:12]}  Kc5 {[%clk 0:13:33]} 44. Rd4 {[%clk 0:23:50]}  Kb6 {[%clk 0:42:42]} 45. Kf3 {[%clk 0:20:14]}  Ka6 {[%clk 0:42:49]}
46. Rdd6 {[%clk 0:20:19]}  Kb6 {[%clk 0:42:45]} 47. Nc4+ {[%clk 0:18:55]}  Kc7 {[%clk 0:40:49]} 48. Rde6 {[%clk 0:17:48]}  Qg7 {[%clk 0:41:09]}
49. Rxf5 {[%clk 0:15:05]}  Qg4+ {[%clk 0:40:08]} 50. Ke4 {[%clk 0:15:33]}  Qxh4 {[%clk 0:40:19]} 51. Rf7+ {[%clk 0:15:47]}  Kb8 {[%clk 0:40:38]}
52. Ree7 {[%clk 0:14:08]}  Qh1+ {[%clk 0:41:03]} 53. Kf5 {[%clk 0:14:00]}  Qd5+ {[%clk 0:41:12]} 54. Kf6 {[%clk 0:13:20]} 1-0

[Event "2026 European Womens Championship"]
[Site "Batumi, GE"]
[Date "2026.05.29"]
[Round "5"]
[White "Mamedjarova, Zeinab"]
[Black "Arakhamia-Grant, Ketevan"]
[Result "0-1"]
[Board "92"]
[TimeControl "5400+30"]
[WhiteFideId "13401521"]
[BlackFideId "13600168"]
[WhiteElo "2137"]
[BlackElo "2306"]
[WhiteTitle "WGM"]
[BlackTitle "GM"]
[WhiteClock "0:31:14"]
[BlackClock "0:18:55"]
[Variant "Standard"]

1. d4 {[%clk 1:30:50]}  g6 {[%clk 1:30:52]} 2. Nf3 {[%clk 1:30:46]}  Bg7 {[%clk 1:31:09]} 3. Bf4 {[%clk 1:30:11]}  d6 {[%clk 1:31:20]}
4. e3 {[%clk 1:30:36]}  Nd7 {[%clk 1:31:38]} 5. Bc4 {[%clk 1:27:03]}  Nh6 {[%clk 1:19:52]} 6. c3 {[%clk 1:26:53]}  e5 {[%clk 1:16:24]}
7. dxe5 {[%clk 1:22:25]}  dxe5 {[%clk 1:15:08]} 8. Bg5 {[%clk 1:19:28]}  f6 {[%clk 1:15:05]} 9. Bxh6 {[%clk 0:54:12]}  Bxh6 {[%clk 1:15:23]}
10. Nbd2 {[%clk 0:53:04]}  Qe7 {[%clk 1:10:51]} 11. a4 {[%clk 0:49:39]}  e4 {[%clk 0:51:35]} 12. Nd4 {[%clk 0:49:03]}  Ne5 {[%clk 0:51:39]}
13. Qb3 {[%clk 0:44:02]}  f5 {[%clk 0:47:37]} 14. Be2 {[%clk 0:36:03]}  c5 {[%clk 0:28:36]} 15. Nb5 {[%clk 0:30:46]}  a6 {[%clk 0:28:23]}
16. Na3 {[%clk 0:27:50]}  Be6 {[%clk 0:28:32]} 17. Qc2 {[%clk 0:26:08]}  O-O {[%clk 0:21:33]} 18. O-O {[%clk 0:23:36]}  Rad8 {[%clk 0:20:39]}
19. Ndc4 {[%clk 0:15:14]}  Nd3 {[%clk 0:18:05]} 20. a5 {[%clk 0:14:09]}  f4 {[%clk 0:15:21]} 21. exf4 {[%clk 0:07:22]}  Bxf4 {[%clk 0:15:40]}
22. Bxd3 {[%clk 0:04:17]}  exd3 {[%clk 0:15:42]} 23. Qd1 {[%clk 0:01:35]}  Bd5 {[%clk 0:02:07]} 24. Qg4 {[%clk 0:01:35]}  Qe4 {[%clk 0:01:12]}
25. f3 {[%clk 0:01:15]}  Qe6 {[%clk 0:00:56]} 26. Qxe6+ {[%clk 0:01:24]}  Bxe6 {[%clk 0:01:22]} 27. g3 {[%clk 0:00:50]}  Bh6 {[%clk 0:01:42]}
28. Rad1 {[%clk 0:00:42]}  Rf5 {[%clk 0:00:58]} 29. f4 {[%clk 0:00:52]}  Rfd5 {[%clk 0:00:45]} 30. Rd2 {[%clk 0:00:46]}  g5 {[%clk 0:00:46]}
31. Ne3 {[%clk 0:01:05]}  R5d7 {[%clk 0:01:08]} 32. Nac4 {[%clk 0:00:38]}  gxf4 {[%clk 0:01:22]} 33. gxf4 {[%clk 0:01:01]}  Rg7+ {[%clk 0:01:25]}
34. Rg2 {[%clk 0:00:44]}  d2 {[%clk 0:01:34]} 35. Rxg7+ {[%clk 0:01:01]}  Kxg7 {[%clk 0:01:59]} 36. b3 {[%clk 0:00:49]}  Rd3 {[%clk 0:00:59]}
37. Nd1 {[%clk 0:00:45]}  Kf6 {[%clk 0:00:38]} 38. Ne5 {[%clk 0:00:36]}  Rd8 {[%clk 0:00:47]} 39. Nf3 {[%clk 0:00:34]}  Bxb3 {[%clk 0:00:46]}
40. h4 {[%clk 0:00:34]}  Bxd1 {[%clk 0:00:35]} 41. Rxd1 {[%clk 0:01:01]}  Bxf4 {[%clk 0:00:51]} 42. Kf2 {[%clk 0:01:18]}  Rd3 {[%clk 0:25:06]}
43. c4 {[%clk 0:30:57]}  Kf5 {[%clk 0:21:18]} 44. Ke2 {[%clk 0:30:49]}  Re3+ {[%clk 0:21:12]} 45. Kf2 {[%clk 0:31:14]}  Rc3 {[%clk 0:18:55]} 0-1

[Event "2026 European Womens Championship"]
[Site "Batumi, GE"]
[Date "2026.05.29"]
[Round "5"]
[White "Ivanytska, Liudmyla"]
[Black "Jarocka, Liwia"]
[Result "0-1"]
[Board "93"]
[TimeControl "5400+30"]
[WhiteFideId "14176211"]
[BlackFideId "21807558"]
[WhiteElo "2112"]
[BlackElo "2288"]
[BlackTitle "FM"]
[WhiteClock "0:06:46"]
[BlackClock "0:10:16"]
[Variant "Standard"]

1. d4 {[%clk 1:22:24]}  Nf6 {[%clk 1:29:50]} 2. c4 {[%clk 1:22:47]}  e6 {[%clk 1:30:09]} 3. Nf3 {[%clk 1:23:12]}  d5 {[%clk 1:30:22]}
4. g3 {[%clk 1:23:40]}  Be7 {[%clk 1:24:02]} 5. Bg2 {[%clk 1:23:57]}  O-O {[%clk 1:24:21]} 6. O-O {[%clk 1:24:16]}  dxc4 {[%clk 1:24:30]}
7. Qc2 {[%clk 1:24:07]}  a6 {[%clk 1:22:22]} 8. a4 {[%clk 1:24:16]}  Nbd7 {[%clk 1:21:39]} 9. Qxc4 {[%clk 1:21:40]}  b5 {[%clk 1:21:44]}
10. Qc6 {[%clk 1:20:04]}  Rb8 {[%clk 1:21:03]} 11. Bf4 {[%clk 1:05:04]}  Nd5 {[%clk 1:19:59]} 12. axb5 {[%clk 1:04:57]}  Nxf4 {[%clk 1:17:52]}
13. gxf4 {[%clk 1:05:23]}  Bb7 {[%clk 1:18:10]} 14. Qc2 {[%clk 1:01:38]}  axb5 {[%clk 1:18:30]} 15. Rd1 {[%clk 0:58:31]}  Qc8 {[%clk 1:15:39]}
16. Ra5 {[%clk 0:49:12]}  Ba8 {[%clk 1:05:02]} 17. Nc3 {[%clk 0:39:40]}  b4 {[%clk 1:02:28]} 18. Ne4 {[%clk 0:39:48]}  b3 {[%clk 0:50:41]}
19. Qd3 {[%clk 0:39:50]}  c5 {[%clk 0:48:03]} 20. Nfg5 {[%clk 0:21:10]}  c4 {[%clk 0:46:06]} 21. Qb1 {[%clk 0:11:15]}  g6 {[%clk 0:44:35]}
22. Ra7 {[%clk 0:10:48]}  Rb7 {[%clk 0:40:15]} 23. Ra1 {[%clk 0:06:05]}  Rb8 {[%clk 0:39:02]} 24. Ra7 {[%clk 0:06:07]}  Rb7 {[%clk 0:29:30]}
25. Ra1 {[%clk 0:04:51]}  Qc7 {[%clk 0:24:37]} 26. Qc1 {[%clk 0:04:57]}  Rbb8 {[%clk 0:23:19]} 27. Qe3 {[%clk 0:04:17]}  h6 {[%clk 0:20:10]}
28. Nf3 {[%clk 0:04:30]}  Bxe4 {[%clk 0:19:45]} 29. Qxe4 {[%clk 0:04:58]}  Nf6 {[%clk 0:20:10]} 30. Qe5 {[%clk 0:05:00]}  Qd8 {[%clk 0:16:09]}
31. Qe3 {[%clk 0:04:29]}  Nd5 {[%clk 0:16:09]} 32. Qc1 {[%clk 0:04:47]}  c3 {[%clk 0:15:18]} 33. Ne5 {[%clk 0:05:10]}  cxb2 {[%clk 0:09:33]}
34. Qxb2 {[%clk 0:05:36]}  Nxf4 {[%clk 0:09:11]} 35. Nc6 {[%clk 0:05:24]}  Ba3 {[%clk 0:09:32]} 36. Qb1 {[%clk 0:01:45]}  Qg5 {[%clk 0:09:22]}
37. Qe4 {[%clk 0:02:13]}  b2 {[%clk 0:09:05]} 38. Rab1 {[%clk 0:00:33]}  Rbc8 {[%clk 0:09:24]} 39. Ne7+ {[%clk 0:00:45]}  Bxe7 {[%clk 0:09:42]}
40. Rxb2 {[%clk 0:01:11]}  Nxg2 {[%clk 0:09:39]} 41. Qxg2 {[%clk 0:01:37]}  Rc1 {[%clk 0:09:51]} 42. Rb1 {[%clk 0:01:54]}  Rxd1+ {[%clk 0:09:21]}
43. Rxd1 {[%clk 0:02:21]}  Rd8 {[%clk 0:09:29]} 44. Rd3 {[%clk 0:02:13]}  Qc1+ {[%clk 0:09:16]} 45. Qf1 {[%clk 0:02:41]}  Qxf1+ {[%clk 0:09:41]}
46. Kxf1 {[%clk 0:03:09]}  Bf6 {[%clk 0:10:00]} 47. e3 {[%clk 0:03:32]}  e5 {[%clk 0:10:18]} 48. d5 {[%clk 0:03:58]}  e4 {[%clk 0:10:40]}
49. Rd2 {[%clk 0:04:25]}  Be5 {[%clk 0:11:05]} 50. Kg2 {[%clk 0:04:52]}  Kf8 {[%clk 0:11:05]} 51. h4 {[%clk 0:05:10]}  Ke7 {[%clk 0:11:27]}
52. f3 {[%clk 0:05:28]}  f5 {[%clk 0:11:36]} 53. fxe4 {[%clk 0:05:33]}  fxe4 {[%clk 0:12:05]} 54. Rd1 {[%clk 0:05:42]}  h5 {[%clk 0:10:46]}
55. Rd2 {[%clk 0:05:21]}  Rd6 {[%clk 0:11:10]} 56. Rd1 {[%clk 0:05:45]}  Rb6 {[%clk 0:11:01]} 57. d6+ {[%clk 0:05:32]}  Rxd6 {[%clk 0:10:11]}
58. Rb1 {[%clk 0:05:56]}  Rd2+ {[%clk 0:10:31]} 59. Kg1 {[%clk 0:06:25]}  Bb2 {[%clk 0:10:01]} 60. Rf1 {[%clk 0:06:46]}  Re2 {[%clk 0:10:16]} 0-1

[Event "2026 European Womens Championship"]
[Site "Batumi, GE"]
[Date "2026.05.29"]
[Round "5"]
[White "Liashkevich, Lizaveta"]
[Black "Peglau, Charis"]
[Result "1/2-1/2"]
[Board "94"]
[TimeControl "5400+30"]
[WhiteFideId "13518658"]
[BlackFideId "16219996"]
[WhiteElo "2079"]
[BlackElo "2238"]
[WhiteTitle "WFM"]
[BlackTitle "WFM"]
[WhiteClock "0:04:37"]
[BlackClock "0:10:25"]
[Variant "Standard"]

1. d4 {[%clk 1:30:53]}  d5 {[%clk 1:30:49]} 2. c4 {[%clk 1:31:17]}  e6 {[%clk 1:31:14]} 3. Nc3 {[%clk 1:31:35]}  Nf6 {[%clk 1:31:36]}
4. Nf3 {[%clk 1:31:37]}  dxc4 {[%clk 1:31:57]} 5. e3 {[%clk 1:31:26]}  a6 {[%clk 1:32:20]} 6. Bxc4 {[%clk 1:27:50]}  b5 {[%clk 1:32:43]}
7. Be2 {[%clk 1:24:35]}  Bb7 {[%clk 1:33:01]} 8. O-O {[%clk 1:23:45]}  Nbd7 {[%clk 1:31:38]} 9. a3 {[%clk 1:18:10]}  Bd6 {[%clk 1:25:39]}
10. Qc2 {[%clk 1:07:28]}  c5 {[%clk 1:24:08]} 11. dxc5 {[%clk 1:04:00]}  Nxc5 {[%clk 1:24:07]} 12. b4 {[%clk 0:48:36]}  Nce4 {[%clk 1:22:44]}
13. Nxe4 {[%clk 0:42:46]}  Bxe4 {[%clk 1:21:45]} 14. Qb3 {[%clk 0:39:38]}  Rc8 {[%clk 1:18:59]} 15. Bb2 {[%clk 0:37:44]}  O-O {[%clk 1:15:13]}
16. Rac1 {[%clk 0:34:26]}  Qe7 {[%clk 1:09:39]} 17. Be5 {[%clk 0:30:25]}  Ng4 {[%clk 0:58:40]} 18. Bg3 {[%clk 0:26:33]}  Bxg3 {[%clk 0:47:10]}
19. hxg3 {[%clk 0:26:19]}  Qf6 {[%clk 0:46:27]} 20. Rc5 {[%clk 0:21:01]}  Bd5 {[%clk 0:33:16]} 21. Qc2 {[%clk 0:19:24]}  Rxc5 {[%clk 0:33:20]}
22. Qxc5 {[%clk 0:16:17]}  Qb2 {[%clk 0:31:20]} 23. Nd4 {[%clk 0:14:54]}  Nf6 {[%clk 0:30:59]} 24. Qc1 {[%clk 0:13:57]}  Qa2 {[%clk 0:28:34]}
25. Bf3 {[%clk 0:10:25]}  Ne4 {[%clk 0:21:55]} 26. Bxe4 {[%clk 0:09:52]}  Bxe4 {[%clk 0:22:23]} 27. f3 {[%clk 0:08:38]}  Bb7 {[%clk 0:20:52]}
28. Rf2 {[%clk 0:07:51]}  Qd5 {[%clk 0:21:14]} 29. Rc2 {[%clk 0:07:52]}  Qd6 {[%clk 0:15:51]} 30. Rc7 {[%clk 0:04:18]}  Bd5 {[%clk 0:15:51]}
31. Qc5 {[%clk 0:03:30]}  Qxg3 {[%clk 0:09:16]} 32. Rc8 {[%clk 0:03:44]}  Qe1+ {[%clk 0:09:37]} 33. Kh2 {[%clk 0:04:10]}  Qh4+ {[%clk 0:10:01]}
34. Kg1 {[%clk 0:04:37]}  Qe1+ {[%clk 0:10:25]} 1/2-1/2